fUSD/lending_fUSD_20260202
["ID","MTS","AMOUNT","RATE_DAILY","PERIOD"]
[404290351,1770036645603,-1950.43343272,0.00016438,2]
[404290352,1770036645615,-1950.43343272,0.00016438,2]
[404290353,1770036645628,-1950.43343272,0.00016438,2]
[404290354,1770036645638,-1950.43343272,0.00016438,2]
[404290355,1770036645649,-1950.43343272,0.00016438,2]
[404290356,1770036645660,-1950.43343272,0.00016438,2]
[404290357,1770036645670,-1950.43343272,0.00016438,2]
[404290359,1770036645679,-1950.43343272,0.00016438,2]
[404290361,1770036645689,-1950.43343272,0.00016438,2]
[404290362,1770036645700,-1950.43343272,0.00016438,2]
[404290363,1770036645709,-1950.43343272,0.00016438,2]
[404290364,1770036645721,-1950.43343272,0.00016438,2]
[404290365,1770036645731,-1950.43343272,0.00016438,2]
[404290366,1770036645742,-1950.43343272,0.00016438,2]
[404290367,1770036645753,-1950.43343272,0.00016438,2]
[404290368,1770036645762,-1950.43343272,0.00016438,2]
[404290369,1770036645774,-1950.43343272,0.00016438,2]
[404290370,1770036645784,-1950.43343272,0.00016438,2]
[404290371,1770036645794,-1950.43343272,0.00016438,2]
[404290372,1770036645807,-1950.43343272,0.00016438,2]
[404290373,1770036645817,-1950.43343272,0.00016438,2]
[404290374,1770036645830,-1950.43343272,0.00016438,2]
[404290375,1770036645845,-1950.43343272,0.00016438,2]
[404290376,1770036645855,-1950.43343272,0.00016438,2]
[404290377,1770036645864,-1950.43343272,0.00016438,2]
[404290378,1770036645879,-1894.58768913,0.00016438,2]
[404290379,1770036645890,-1894.58768913,0.00016438,2]
[404290380,1770036645903,-1894.58768913,0.00016438,2]
[404290381,1770036645912,-1894.58768913,0.00016438,2]
[404290382,1770036645923,-1894.58768913,0.00016438,2]
[404290383,1770036645934,-1894.58768913,0.00016438,2]
[404290384,1770036645947,-1894.58768913,0.00016438,2]
[404290385,1770036645957,-1894.58768913,0.00016438,2]
[404290386,1770036645970,-1894.58768913,0.00016438,2]
[404290387,1770036645982,-1894.58768913,0.00016438,2]
[404290388,1770036645995,-1894.58768913,0.00016438,2]
[404290389,1770036646007,-1894.58768913,0.00016438,2]
[404290390,1770036646019,-1894.58768913,0.00016438,2]
[404290391,1770036646032,-1894.58768913,0.00016438,2]
[404290392,1770036646045,-1894.58768913,0.00016438,2]
[404290393,1770036646056,-1894.58768913,0.00016438,2]
[404290394,1770036646066,-1894.58768913,0.00016438,2]
[404290395,1770036646077,-1894.58768913,0.00016438,2]
[404290396,1770036646087,-1894.58768913,0.00016438,2]
[404290397,1770036646096,-1894.58768913,0.00016438,2]
[404290398,1770036646107,-1894.58768913,0.00016438,2]
[404290399,1770036646119,-1894.58768913,0.00016438,2]
[404290400,1770036646134,-1894.58768913,0.00016438,2]
[404290401,1770036646146,-1894.58768913,0.00016438,2]
[404290402,1770036646156,-1894.58768913,0.00016438,2]
[404290403,1770036646166,-1894.58768905,0.00016438,2]
[404290404,1770036646178,-1872.11781497,0.00016438,2]
[404290405,1770036646188,-3819.93,0.00016438,2]
[404290406,1770036646200,-800.78453244,0.00016438,2]
[404290407,1770036646211,-250.55733734,0.00016438,2]
[404290408,1770036646222,-260.4103811,0.00016456,2]
[404290409,1770036646232,-200.02287089,0.00016478,2]
[404290410,1770036646243,-270.0455652,0.00016511,2]
[404290411,1770036646253,-13487.04075331,0.00016535,2]
[404290413,1770036646262,-280.03725112,0.00016566,2]
[404290415,1770036646272,-1500.0,0.00016568,2]
[404290417,1770036646281,-624.86514765,0.00016568,2]
[404290419,1770036646292,-1500.0,0.00016568,2]
[404290421,1770036646301,-1500.0,0.00016568,2]
[404290423,1770036646311,-1500.0,0.00016568,2]
[404290425,1770036646321,-545.1454494,0.00016568,2]
[404290426,1770036646331,-1500.0,0.00016568,2]
[404290428,1770036646341,-1500.0,0.00016568,2]
[404290430,1770036646351,-505.24936027,0.00016568,2]
[404290432,1770036646360,-345.31167706,0.00016568,2]
[404290434,1770036646370,-1500.0,0.00016568,2]
[404290436,1770036646381,-165.40489721,0.00016568,2]
[404290437,1770036646391,-1500.0,0.00016568,2]
[404290438,1770036646402,-1315.28060531,0.00016568,2]
[404290439,1770036646413,-505.54193795,0.00016568,2]
[404290440,1770036646422,-1500.0,0.00016568,2]
[404290441,1770036646431,-1500.0,0.00016568,2]
[404290442,1770036646441,-619.84098311,0.00016568,2]
[404290443,1770036646450,-1500.0,0.00016568,2]
[404290444,1770036646460,-1500.0,0.00016568,2]
[404290445,1770036646469,-1500.0,0.00016568,2]
[404290446,1770036646479,-1500.0,0.00016568,2]
[404290447,1770036646489,-1500.0,0.00016568,2]
[404290448,1770036646498,-504.6853335,0.00016568,2]
[404290449,1770036646508,-276.88278142,0.00016568,2]
[404290450,1770036646517,-290.39862941,0.00016621,2]
[404290451,1770036646527,-325.0,0.00016661,2]
[404290452,1770036646536,-151.49674582,0.00016674,2]
[404290453,1770036646546,-217.15233878,0.00016674,2]
[404290454,1770036646555,-168.90333538,0.00016674,2]
[404290455,1770036646564,-891.61887448,0.00016674,2]
[404290456,1770036646574,-1481.23780761,0.00016674,2]
[404290457,1770036646584,-217.15233878,0.00016674,2]
[404290458,1770036646593,-181.08010149,0.00016674,2]
[404290459,1770036646602,-301.1433787,0.00016676,2]
[404290460,1770036646611,-294.02,0.00016699,2]
[404290461,1770036646620,-152.49,0.00016718,2]
[404290462,1770036646630,-163.0,0.0001672,2]
[404290463,1770036646639,-839.0,0.0001672,2]
[404290464,1770036646648,-839.0,0.0001672,2]
[404290465,1770036646657,-163.0,0.0001672,2]
[404290466,1770036646666,-166.66,0.00016787,2]
[404290467,1770036646676,-231.0,0.00016805,2]
[404290468,1770036646685,-1000.0,0.00016825,2]
[404290469,1770036646694,-500.0,0.00016858,2]
[404290470,1770036646704,-265.19897578,0.0001696,2]
[404290471,1770036646713,-159.99318318,0.00016962,2]
[404290472,1770036646722,-163.0,0.0001704,2]
[404290473,1770036646731,-839.0,0.0001704,2]
[404290474,1770036646741,-163.0,0.0001704,2]
[404290475,1770036646750,-5888.0,0.00017097,2]
[404290476,1770036646759,-1628.18837233,0.00017116,2]
[404290477,1770036646767,-2000.0,0.00017116,2]
[404290478,1770036646777,-643.18674336,0.00017116,2]
[404290479,1770036646786,-2136.8475123,0.00017116,2]
[404290480,1770036646795,-1256.98671009,0.00017116,2]
[404290481,1770036646805,-1488.36339388,0.00017116,2]
[404290482,1770036646814,-974.64879752,0.00017116,2]
[404290483,1770036646823,-508.230722,0.00017116,2]
[404290484,1770036646834,-689.68040771,0.00017116,2]
[404290485,1770036646844,-1612.39809416,0.00017116,2]
[404290486,1770036646853,-2000.0,0.00017116,2]
[404290487,1770036646863,-2000.0,0.00017116,2]
[404290488,1770036646873,-2000.0,0.00017116,2]
[404290489,1770036646883,-506.20015718,0.00017116,2]
[404290490,1770036646892,-2000.0,0.00017116,2]
[404290491,1770036646902,-313.0,0.00017175,2]
[404290493,1770036646913,-163.0,0.00017175,2]
[404290495,1770036646922,-1500.0,0.000172,2]
[404290497,1770036646931,-1330.2,0.00017202,2]
[404290499,1770036646941,-4609.0,0.00017215,2]
[404290501,1770036646950,-13487.04075331,0.00017217,2]
[404290503,1770036646959,-225.18697532,0.00017222,2]
[404290505,1770036646968,-924.60877284,0.00017222,2]
[404290507,1770036646978,-1536.04360649,0.00017222,2]
[404290509,1770036646987,-225.18697532,0.00017222,2]
[404290511,1770036646996,-187.78006525,0.00017222,2]
[404290513,1770036647006,-1899.6725397,0.00017259,2]
[404290515,1770036647015,-1000.0,0.0001726,2]
[404290517,1770036647024,-5888.0,0.00017291,2]
[404290519,1770036647033,-166.66,0.00017306,2]
[404290521,1770036647042,-839.0,0.0001736,2]
[404290523,1770036647051,-809.0,0.0001736,2]
[404290525,1770036647060,-163.0,0.0001736,2]
[404290527,1770036647069,-5888.0,0.00017476,2]
[404290529,1770036647078,-334.5472959,0.00017495,2]
[404290531,1770036647087,-1000.0,0.00017534,2]
[404290533,1770036647095,-839.0,0.00017555,2]
[404290535,1770036647104,-159.99318318,0.00017568,2]
[404290537,1770036647113,-1500.0,0.000176,2]
[404290539,1770036647122,-10091.57601831,0.00017625,2]
[404290541,1770036647131,-3012.2001319,0.0001764,2]
[404290543,1770036647139,-5888.0,0.0001765,2]
[404290545,1770036647149,-447.23523297,0.00017664,2]
[404290547,1770036647158,-1002.53462592,0.00017664,2]
[404290549,1770036647167,-716.63993214,0.00017664,2]
[404290551,1770036647176,-1504.86417643,0.00017664,2]
[404290553,1770036647185,-502.03881526,0.00017664,2]
[404290555,1770036647194,-163.0,0.0001768,2]
[404290557,1770036647203,-25000.0,0.00017733,3]
[404290559,1770036647212,-2096.0,0.00017735,2]
[404290561,1770036647221,-25000.0,0.00017742,3]
[404290563,1770036647231,-151.0,0.00017747,2]
[404290565,1770036647239,-25000.0,0.0001775,3]
[404290567,1770036647249,-386.0,0.00017755,2]
[404290568,1770036647258,-25000.0,0.00017759,3]
[404290570,1770036647267,-386.0,0.00017767,2]
[404290572,1770036647276,-25000.0,0.00017768,3]
[404290573,1770036647285,-233.51889341,0.0001777,2]
[404290574,1770036647294,-958.81929743,0.0001777,2]
[404290575,1770036647303,-1592.87721993,0.0001777,2]
[404290576,1770036647312,-233.51889341,0.0001777,2]
[404290577,1770036647321,-194.72792766,0.0001777,2]
[404290578,1770036647331,-1329.02370019,0.00017775,2]
[404290579,1770036647340,-1798.2162,0.00017775,2]
[404290580,1770036647349,-433.99807711,0.00017776,2]
[404290581,1770036647357,-25000.0,0.00017777,3]
[404290582,1770036647367,-25000.0,0.00017786,3]
[404290583,1770036647375,-390.0,0.0001779,2]
[404290584,1770036647385,-25000.0,0.00017794,3]
[404290585,1770036647394,-1500.0,0.000178,2]
[404290586,1770036647403,-25000.0,0.00017803,3]
[404290587,1770036647412,-500.0,0.00017808,2]
[404290588,1770036647422,-1000.0,0.00017808,2]
[404290589,1770036647431,-25000.0,0.00017812,3]
[404290590,1770036647442,-3764.4246687,0.0001782,10]
[404290591,1770036647450,-2000.0,0.0001782,2]
[404290592,1770036647459,-2000.0,0.0001782,2]
[404290593,1770036647468,-25000.0,0.00017821,3]
[404290594,1770036647477,-166.66,0.00017826,2]
[404290595,1770036647487,-386.0,0.00017828,2]
[404290596,1770036647496,-25000.0,0.0001783,3]
[404290597,1770036647505,-163.0,0.0001783,2]
[404290598,1770036647514,-38230.0690539,0.0001783,2]
[404290599,1770036647524,-25000.0,0.00017838,3]
[404290600,1770036647534,-390.0,0.00017843,2]
[404290601,1770036647544,-25000.0,0.00017847,3]
[404290602,1770036647554,-196.02,0.00017849,2]
[404290603,1770036647563,-200.0,0.00017855,2]
[404290604,1770036647573,-200.0,0.00017856,2]
[404290605,1770036647582,-25000.0,0.00017856,3]
[404290606,1770036647592,-200.0,0.00017856,2]
[404290607,1770036647601,-200.0,0.00017856,2]
[404290608,1770036647610,-919.3744702,0.00017857,2]
[404290609,1770036647620,-500.0,0.00017863,2]
[404290610,1770036647630,-162.72452553,0.00017864,2]
[404290611,1770036647639,-25000.0,0.00017865,3]
[404290612,1770036647649,-196.02,0.00017873,2]
[404290613,1770036647658,-25000.0,0.00017874,3]
[404290614,1770036647667,-25000.0,0.00017882,3]
[404290615,1770036647676,-25000.0,0.00017891,3]
[404290616,1770036647685,-152.49,0.00017894,2]
[404290617,1770036647695,-196.0164064,0.00017896,2]
[404290618,1770036647704,-13487.04075331,0.00017899,2]
[404290619,1770036647714,-10139.4576,0.000179,2]
[404290620,1770036647724,-25000.0,0.000179,3]
[404290621,1770036647733,-427.93748202,0.000179,2]
[404290622,1770036647742,-17205.90121961,0.000179,3]
[404290623,1770036647751,-480.55721143,0.000179,2]
[404290624,1770036647760,-3430.7801549,0.000179,2]
[404290625,1770036647770,-12719.0,0.000179,2]
[404290626,1770036647779,-500.0,0.00017918,2]
[404290627,1770036647788,-390.0,0.00017919,2]
[404290628,1770036647797,-200.009499,0.00017926,2]
[404290629,1770036647806,-282.06,0.0001793,2]
[404290630,1770036647815,-152.49,0.00017933,2]
[404290631,1770036647827,-386.0,0.00017936,2]
[404290632,1770036647840,-390.0,0.00017939,2]
[404290633,1770036647850,-386.0,0.00017955,2]
[404290634,1770036647861,-1330.2,0.00017966,2]
[404290635,1770036647871,-505.94629065,0.0001797,2]
[404290636,1770036647882,-500.0,0.0001797,2]
[404290637,1770036647892,-390.0,0.00017972,2]
[404290638,1770036647902,-506.1208044,0.00017972,2]
[404290639,1770036647914,-390.0,0.0001798,2]
[404290640,1770036647923,-500.0,0.00017982,2]
[404290641,1770036647932,-224.93163045,0.0001799,2]
[404290642,1770036647941,-161.21910117,0.00017997,2]
[404290643,1770036647950,-248.4005496,0.00017998,2]
[404290644,1770036647959,-77098.5029114,0.00017998,2]
[404290645,1770036647968,-153.40029052,0.00017999,2]
[404290646,1770036647977,-56840.4648112,0.00017999,2]
[404290647,1770036647986,-71780.604456,0.00017999,2]
[404290648,1770036647995,-978.1660575,0.00017999,2]
[404290649,1770036648005,-276999.7596445,0.00017999,2]
[404290650,1770036648013,-17367.4095622,0.00017999,2]
[404290651,1770036648022,-300.0,0.00017999,2]
[404290652,1770036648031,-2686.097623,0.00017999,2]
[404290653,1770036648040,-300.0,0.00017999,2]
[404290654,1770036648049,-300.0,0.00017999,2]
[404290655,1770036648059,-300.0,0.00017999,2]
[404290656,1770036648069,-1163129.54409178,0.00018,2]
[404290657,1770036648079,-813.94526043,0.00018,2]
[404290658,1770036648087,-1191.99317303,0.00018,2]
[404290659,1770036648096,-5800.0,0.00018,2]
[404290660,1770036648107,-462.02409839,0.00018,2]
[404290661,1770036648117,-162.39977496,0.00018,2]
[404290662,1770036648126,-1000.0,0.00018,2]
[404290663,1770036648135,-1000.0,0.00018,2]
[404290664,1770036648144,-1000.0,0.00018,2]
[404290665,1770036648153,-1000.0,0.00018,2]
[404290666,1770036648162,-1000.0,0.00018,2]
[404290667,1770036648171,-1000.0,0.00018,2]
[404290668,1770036648180,-1000.0,0.00018,2]
[404290669,1770036648189,-1000.0,0.00018,2]
[404290670,1770036648198,-1000.0,0.00018,2]
[404290671,1770036648207,-1000.0,0.00018,2]
[404290672,1770036648215,-1000.0,0.00018,2]
[404290673,1770036648224,-1000.0,0.00018,2]
[404290674,1770036648233,-1000.0,0.00018,2]
[404290675,1770036648243,-1000.0,0.00018,2]
[404290676,1770036648252,-1000.0,0.00018,2]
[404290677,1770036648261,-1000.0,0.00018,2]
[404290678,1770036648270,-1000.0,0.00018,2]
[404290679,1770036648279,-1000.0,0.00018,2]
[404290680,1770036648287,-1000.0,0.00018,2]
[404290681,1770036648296,-1000.0,0.00018,2]
[404290682,1770036648305,-1000.0,0.00018,2]
[404290683,1770036648314,-1000.0,0.00018,2]
[404290684,1770036648323,-1000.0,0.00018,2]
[404290685,1770036648333,-1141.04007611,0.00018,2]
[404290686,1770036648342,-1315140.94271815,0.00018,2]
[404290687,1770036649212,192.64940862,0.00011759,2]
[404290688,1770036649337,-151.0,0.00014761,2]
[404290689,1770036649346,-151.0,0.00014761,2]
[404290690,1770036649356,-1000.0,0.00017911,2]
[404290691,1770036649365,-5268.0,0.00018,2]
[404290692,1770036649375,-1907.42836594,0.00018,2]
[404290693,1770036649387,-1010.1,0.00018,2]
[404290694,1770036649398,-751.1079984,0.00018,2]
[404290695,1770036649412,-994.65913726,0.00018,2]
[404290696,1770036649424,-1008.24074895,0.00018,2]
[404290697,1770036649441,-453.53024,0.00018,2]
[404290698,1770036649453,-460.613,0.00018,2]
[404290700,1770036686535,5000.01,0.00011659,2]
[404290701,1770036686563,5000.01,0.00011659,2]
[404290702,1770036686590,5000.01,0.00011659,2]
[404290703,1770036686621,5000.01,0.00011659,2]
[404290704,1770036686646,5000.01,0.00011659,2]
[404290705,1770036686670,5000.01,0.00011659,2]
[404290706,1770036686694,5000.01,0.00011659,2]
[404290707,1770036686719,5000.01,0.00011659,2]
[404290708,1770036686743,5000.01,0.00011659,2]
[404290709,1770036686766,5000.01,0.00011659,2]
[404290710,1770036748093,2500.0,0.00011559,2]
[404290711,1770036752307,500.0,0.00011658,2]
[404290712,1770036752354,162.86637137,0.00011658,2]
[404290713,1770036752445,549.87780889,0.00011658,2]
[404290714,1770036754024,500.0,0.00011658,2]
[404290715,1770036754096,500.0,0.00011658,2]
[404290716,1770036754149,287.26581974,0.00011658,2]
[404290717,1770036754174,185.14531655,0.00011658,2]
[404290718,1770036779121,4814.86468345,0.00011559,2]
[404290719,1770036779142,5000.01,0.00011559,2]
[404290720,1770036779162,5000.01,0.00011559,2]
[404290721,1770036779182,5000.01,0.00011559,2]
[404290722,1770036779203,5000.01,0.00011559,2]
[404290723,1770036779225,5000.01,0.00011559,2]
[404290724,1770036779246,5000.01,0.00011559,2]
[404290725,1770036779266,5000.01,0.00011559,2]
[404290726,1770036779287,5000.01,0.00011559,2]
[404290727,1770036779308,5000.01,0.00011559,2]
[404290728,1770036786419,-4595.46074281,0.00011559,2]
[404290729,1770036786468,-5000.01,0.00011559,2]
[404290730,1770036786500,-5000.01,0.00011559,2]
[404290731,1770036786584,-5000.01,0.00011559,2]
[404290732,1770036786701,-5000.01,0.00011559,2]
[404290733,1770036786827,-5000.01,0.00011559,2]
[404290734,1770036786947,-5000.01,0.00011559,2]
[404290735,1770036787071,-5000.01,0.00011559,2]
[404290736,1770036787220,-5000.01,0.00011559,2]
[404290737,1770036788616,-5000.01,0.00011559,2]
[404290738,1770036789069,-5000.01,0.00011559,2]
[404290739,1770036789184,-5000.01,0.00011559,2]
[404290740,1770036789326,-5000.01,0.00011559,2]
[404290741,1770036789435,-5000.01,0.00011559,2]
[404290742,1770036789576,-5000.01,0.00011559,2]
[404290743,1770036789702,-5000.01,0.00011559,2]
[404290744,1770036789801,-5000.01,0.00011559,2]
[404290745,1770036789926,-5000.01,0.00011559,2]
[404290746,1770036790050,-5000.01,0.00011559,2]
[404290747,1770036790179,-5000.01,0.00011559,2]
[404290748,1770036790290,-5000.01,0.00011559,2]
[404290749,1770036790406,-5000.01,0.00011559,2]
[404290750,1770036790538,-5000.01,0.00011559,2]
[404290751,1770036790702,-5000.01,0.00011559,2]
[404290752,1770036797587,-5000.01,0.00011559,2]
[404290753,1770036797702,-5000.01,0.00011559,2]
[404290754,1770036797808,-5000.01,0.00011559,2]
[404290755,1770036797933,-5000.01,0.00011559,2]
[404290756,1770036798057,-5000.01,0.00011559,2]
[404290757,1770036798163,-5000.01,0.00011559,2]
[404290758,1770036798273,-5000.01,0.00011559,2]
[404290759,1770036798390,-1893.84032626,0.00011559,2]
[404290760,1770036798424,-1212.32934748,0.00011559,2]
[404290761,1770036798512,-500.0,0.00011559,2]
[404290762,1770036827180,4000.01,0.00011559,2]
[404290763,1770036827206,5000.01,0.00011559,2]
[404290764,1770036827228,5000.01,0.00011559,2]
[404290765,1770036827250,5000.01,0.00011559,2]
[404290766,1770036827271,5000.01,0.00011559,2]
[404290767,1770036827293,5000.01,0.00011559,2]
[404290768,1770036827315,3437.1615,0.00011559,2]
[404290769,1770036843248,150.0,0.00011658,2]
[404290770,1770036843645,198.39137328,0.00011559,2]
[404290771,1770036843722,282.0,0.00011658,2]
[404290772,1770036845341,932.45712672,0.00011559,2]
[404290773,1770036845362,251.25932012,0.00011559,2]
[404290774,1770036845486,500.0,0.00011559,2]
[404290775,1770036883856,1387.6264,0.00011559,2]
[404290776,1770036901881,300.0,0.00011658,2]
[404290777,1770036902673,1200.0,0.00011658,2]
[404290779,1770036940724,2112.3836,0.00011559,2]
[404290780,1770036940747,5000.01,0.00011559,2]
[404290781,1770036940769,5000.01,0.00011559,2]
[404290782,1770036940792,5000.01,0.00011559,2]
[404290783,1770036940817,5000.01,0.00011559,2]
[404290784,1770036940854,5000.01,0.00011559,2]
[404290785,1770036940880,5000.01,0.00011559,2]
[404290786,1770036940905,5000.01,0.00011559,2]
[404290787,1770036961994,300.0,0.00011558,2]
[404290788,1770037022015,300.0,0.00011558,2]
[404290789,1770037022724,150.0,0.00011558,2]
[404290795,1770037116102,4250.01,0.00011459,2]
[404290796,1770037116125,5000.01,0.00011459,2]
[404290797,1770037116151,3737.93646414,0.00011459,2]
[404290798,1770037141846,300.0,0.00011558,2]
[404290800,1770037201745,1200.0,0.00011558,2]
[404290801,1770037203477,150.0,0.00011558,2]
[404290807,1770037292728,3325.857,0.00011426,2]
[404290808,1770037292765,24.153,0.00011426,2]
[404290809,1770037292786,135.611,0.00011426,2]
[404290810,1770037332594,150.0,0.00011385,2]
[404290811,1770037332639,500.0,0.00011385,2]
[404290812,1770037332679,500.0,0.00011385,2]
[404290813,1770037332789,500.0,0.0001144,2]
[404290814,1770037332830,500.0,0.0001144,2]
[404290815,1770037333152,500.0,0.00011495,2]
[404290816,1770037333263,466.97590661,0.00011495,2]
[404290817,1770037333306,500.0,0.00011549,2]
[404290818,1770037383194,150.0,0.00011558,2]
[404290819,1770037394230,1097.42309339,0.00011233,2]
[404290820,1770037394251,5000.01,0.00011233,2]
[404290821,1770037394271,3393.31690661,0.00011233,2]
[404290822,1770037432706,948.90299507,0.00011549,2]
[404290823,1770037441863,300.0,0.00011558,2]
[404290824,1770037442369,150.0,0.00011385,2]
[404290825,1770037442560,166.03286464,0.0001144,2]
[404290826,1770037501778,41.75723368,0.00011558,2]
[404290827,1770037501801,1158.24276632,0.00011558,2]
[404290828,1770037526199,500.0,0.00011385,2]
[404290829,1770037526362,500.0,0.0001144,2]
[404290830,1770037526521,500.0,0.00011495,2]
[404290831,1770037526559,150.0,0.00011385,2]
[404290832,1770037526718,500.0,0.00011549,2]
[404290833,1770037528411,150.0,0.00011385,2]
[404290834,1770037528874,500.0,0.00011385,2]
[404290835,1770037529038,500.0,0.0001144,2]
[404290836,1770037529218,514.39371014,0.00011495,2]
[404290837,1770037563453,27.37352354,0.00011558,2]
[404290838,1770037563474,122.62647646,0.00011558,2]
[404290839,1770037575851,150.0,0.00011385,2]
[404290840,1770037576072,150.0,0.0001144,2]
[404290841,1770037576220,150.0,0.00011495,2]
[404290842,1770037576319,4427.38352354,0.00011385,2]
[404290843,1770037576342,2737.61647646,0.00011385,2]
[404290844,1770037576384,150.0,0.00011549,2]
[404290845,1770037576529,2112.39352354,0.0001144,2]
[404290846,1770037576551,5000.01,0.0001144,2]
[404290847,1770037576573,52.59647646,0.0001144,2]
[404290848,1770037576690,4947.41352354,0.00011495,2]
[404290849,1770037576712,2217.58647646,0.00011495,2]
[404290850,1770037576861,2782.42352354,0.00011549,2]
[404290851,1770037576884,4382.57647646,0.00011549,2]
[404290852,1770037577807,500.0,0.00011385,2]
[404290853,1770037578179,117.43352354,0.0001144,2]
[404290854,1770037578203,382.56647646,0.0001144,2]
[404290855,1770037578368,500.0,0.00011495,2]
[404290856,1770037578530,500.0,0.00011549,2]
[404290857,1770037626453,3617.44352354,0.00011459,2]
[404290858,1770037626476,5000.01,0.00011459,2]
[404290859,1770037626497,3071.70729415,0.00011459,2]
[404290867,1770037666725,150.0,0.00011294,2]
[404290868,1770037742499,150.0,0.00011558,2]
[404290869,1770037742537,300.0,0.00011558,2]
[404290870,1770037744715,500.0,0.00011385,2]
[404290871,1770037744879,500.0,0.0001144,2]
[404290872,1770037745044,328.30270585,0.00011495,2]
[404290873,1770037745068,171.69729415,0.00011495,2]
[404290874,1770037745223,500.0,0.00011549,2]
[404290875,1770037745257,250.52896875,0.00011385,2]
[404290876,1770037745685,150.0,0.00011385,2]
[404290877,1770037745724,204.76107445,0.00011385,2]
[404290878,1770037746070,150.0,0.0001144,2]
[404290879,1770037746407,156.44868677,0.00011495,2]
[404290880,1770037746441,150.0,0.00011385,2]
[404290881,1770037746595,213.43986032,0.0001144,2]
[404290882,1770037746649,500.0,0.00011385,2]
[404290883,1770037746701,150.0,0.00011385,2]
[404290884,1770037746845,500.0,0.0001144,2]
[404290885,1770037746975,150.0,0.00011385,2]
[404290886,1770037747012,500.0,0.00011495,2]
[404290887,1770037747150,150.0,0.0001144,2]
[404290888,1770037747187,500.0,0.00011549,2]
[404290889,1770037747300,150.0,0.00011495,2]
[404290890,1770037747713,282.97813088,0.00011549,2]
[404290891,1770037747783,150.0,0.00011385,2]
[404290892,1770037747879,20.15598468,0.0001144,2]
[404290893,1770037747901,245.98242395,0.0001144,2]
[404290894,1770037748561,500.0,0.00011385,2]
[404290895,1770037748785,500.0,0.0001144,2]
[404290896,1770037748982,500.0,0.00011495,2]
[404290897,1770037749258,500.0,0.00011385,2]
[404290898,1770037749395,206.36581695,0.00011549,2]
[404290899,1770037749457,500.0,0.0001144,2]
[404290900,1770037749680,500.0,0.00011495,2]
[404290901,1770037749842,500.0,0.00011549,2]
[404290902,1770037749878,500.0,0.00011385,2]
[404290903,1770037750037,500.0,0.0001144,2]
[404290904,1770037750184,47.6617591,0.00011495,2]
[404290905,1770037750207,452.3382409,0.00011495,2]
[404290906,1770037750341,500.0,0.00011549,2]
[404290912,1770037791648,160.0,0.000115,2]
[404290913,1770037801805,1200.0,0.00011558,2]
[404290914,1770037812520,1000.0,0.00011558,2]
[404290923,1770037831800,-178844.96802296,0.00011559,2]
[404290924,1770037831859,-326.71333278,0.00011559,2]
[404290925,1770037831871,-8668.84959226,0.00011559,2]
[404290998,1770037837927,-781.08,0.00011559,2]
[404290999,1770037837960,-77493.826152,0.00011559,2]
[404291000,1770037837969,-437.87036401,0.00011559,2]
[404291001,1770037837979,-152.03521204,0.00011559,2]
[404291002,1770037837988,-152.03521204,0.00011559,2]
[404291003,1770037837997,-250.0,0.00011559,2]
[404291004,1770037838007,-300.0,0.00011559,2]
[404291005,1770037838020,-493.56259035,0.00011559,2]
[404291006,1770037838029,-12420.67046953,0.00011559,2]
[404291008,1770037840333,-978.77891012,0.00011559,2]
[404291009,1770037840342,-250.0,0.00011574,2]
[404291010,1770037840351,-150.0,0.00011604,2]